[Event "Prague Open 2025"]
[Site "Prague"]
[Date "2025.01.14"]
[Round "6.18"]
[White "Rindhiya V"]
[Black "Sindler, Michal"]
[Result "1/2-1/2"]
[Annotator "TA"]
[ECO "B67"]
[WhiteElo "1999"]
[BlackElo "2136"]
[PlyCount "81"]
[EventDate "2025.01.07"]
[EventType "swiss"]
[EventCountry "CZE"]
[SourceTitle "playchess.com"]
[Source "ChessBase"]
[SourceQuality "1"]
[TimeControl "40/5400+30:1800+30"]

{[%evp 17,81,35,45,16,65,7,0,17,36,41,94,29,49,0,0,0,5,0,3,-118,-49,-36,-35,-72,-80,-75,-48,-162,-13,-19,-8,-9,-6,-25,-25,-33,-11,-12,-12,-16,0,0,-6,-6,-6,-6,-6,-6,-6,-6,0,0,0,0,0,0,0,0,0,0,0,0,0,0,0,0]} 1. e4 {[%emt 0:00:30]} c5 {[%emt 0:02:33]} 2. Nf3 {[%emt 0:00:05]} d6 {[%emt 0:00:08]} 3. d4 {[%emt 0:00:08]} cxd4 {[%emt 0:00:05]} 4. Nxd4 {[%emt 0:00:04]} Nf6 {[%emt 0:00:10]} 5. Nc3 {[%emt 0:00:02]} Nc6 {[%emt 0:00:08]} 6. Bg5 {[%emt 0:00:08]} e6 {[%emt 0:00:15]} 7. Qd2 {[%emt 0:00:08]} a6 {[%emt 0:00:09]} 8. O-O-O {[%emt 0:00:10]} Bd7 {[%emt 0:00:10]} 9. f4 {[%emt 0:00:04]} b5 {[%emt 0:00:49]} 10. Kb1 {[%emt 0:12:39]} b4 {[%emt 0:13:23]} (10... Be7 $11 {was preferable.}) 11. Nxc6 {[%emt 0:07:46]} (11. Bxf6 $14 Qxf6 12. Nce2) 11... Bxc6 $11 {[%emt 0:02:06]} 12. Bxf6 {[%emt 0:37:06]} gxf6 {[%emt 0:05:23]} 13. Ne2 {[%emt 0:02:19]} Qa5 {[%emt 0:07:01]} (13... Bxe4 $14 14. Ng3 (14. Qxb4 d5 $14) 14... Bc6) 14. Ng3 {[%emt 0:04:00]} ({White should try} 14. f5 $1 $16) 14... Qc5 {[%emt 0:06:30]} 15. f5 {[%emt 0:01:33]} (15. Be2 $14) 15... h5 {[%emt 0:05:05]} 16. h4 {[%emt 0:01:50]} Ke7 {[%emt 0:06:24]} 17. Qe2 {[%emt 0:08:35]} Bh6 {[%emt 0:14:56]} 18. Qf3 {[%emt 0:03:35]} (18. Nxh5 $11 Qe5 19. Qf2) 18... Qe3 {[%emt 0:04:02]} (18... a5 $1 $17 19. Bd3 a4) 19. fxe6 $15 {[%emt 0:12:21]} (19. Nxh5 Bxe4 (19... Qxe4 20. Qxe4 Bxe4 21. Rd4 $15) 20. Qxe3 Bxe3 $17) 19... fxe6 {[%emt 0:00:54]} (19... Qxf3 {simplifies} 20. gxf3 fxe6 21. Bc4 a5) 20. Nxh5 {[%emt 0:01:07]} Qxf3 {[%emt 0:01:23]} (20... f5 {is more complex.} 21. Bc4 Qxf3 22. gxf3 Raf8) 21. gxf3 {[%emt 0:00:01] [#]} Rag8 $1 {[%emt 0:04:25] Wards off Ng3} 22. Rh3 {[%emt 0:00:40] [#]} (22. Bxa6 $2 Be8 23. Nxf6 Kxf6 24. Rxd6 Bf4 $19) (22. Bh3 $15) 22... Be3 {[%emt 0:01:41]} ({Black should try} 22... Rg1 $1 $19 {And now ...Rhg8 would win.} 23. Rg3 Rh1) 23. Ng3 $11 {[%emt 0:00:06] White is weak on the dark squares} Bf2 {[%emt 0:01:00][%mdl 1024] Black has compensation. A strong pair of Bishops.} 24. Ne2 {[%emt 0:00:05]} a5 {[%emt 0:02:46]} 25. h5 {[%emt 0:03:54]} e5 {[%emt 0:03:22] Prevents Nf4.} 26. c3 {[%emt 0:02:57]} Rg5 {[%emt 0:01:04]} 27. cxb4 {[%emt 0:00:03]} axb4 {[%emt 0:00:18]} 28. Nc1 {[%emt 0:00:27]} Rhxh5 {[%emt 0:03:38]} 29. Rxh5 {[%emt 0:00:02]} Rxh5 {[%emt 0:00:09]} 30. Nd3 {[%emt 0:00:23][%csl LRb4,LRf2]} Bc5 {[%emt 0:00:40]} 31. Rc1 {[%emt 0:01:17]} Rh1 {[%emt 0:05:39]} 32. Be2 {[%emt 0:00:42]} Rxc1+ {[%emt 0:00:51]} 33. Kxc1 {[%emt 0:00:03][%mdl 4096] Endgame KBB-KBN} f5 {[%emt 0:03:55]} 34. exf5 {[%emt 0:01:41]} Kf6 {[%emt 0:00:11]} 35. Nxc5 {[%emt 0:00:36]} dxc5 {[%emt 0:00:06] KB-KB. White is a pawn up.} 36. Kd2 {[%emt 0:00:10]} Bd5 {[%emt 0:02:43]} 37. a4 {[%emt 0:00:30] Threatens to win with a5.} bxa3 {[%emt 0:00:16]} 38. bxa3 {[%emt 0:00:02]} Kxf5 {[%emt 0:00:29]} 39. Ke3 {[%emt 0:01:00]} c4 {[%emt 0:01:58]} 40. a4 {[%emt 0:00:47]} Ke6 {[%emt 0:00:36]} 41. f4 {[%emt 0:07:10]} 1/2-1/2

[Event "Prague Open 2025"]
[Site "Prague"]
[Date "2025.01.14"]
[Round "6.19"]
[White "Kisiel, Wiktor"]
[Black "Felix, Raphael"]
[Result "0-1"]
[Annotator "TA"]
[ECO "B90"]
[WhiteElo "1871"]
[BlackElo "2127"]
[PlyCount "94"]
[EventDate "2025.01.07"]
[EventType "swiss"]
[EventCountry "CZE"]
[SourceTitle "playchess.com"]
[Source "ChessBase"]
[SourceQuality "1"]
[TimeControl "40/5400+30:1800+30"]

{[%evp 16,94,14,9,24,7,0,-4,0,-45,-14,-20,-14,-72,-74,-115,-117,-116,-116,-190,-183,-227,-232,-272,-281,-281,-272,-259,-231,-231,-197,-205,-205,-207,-219,-231,-222,-281,-277,-304,-294,-286,-250,-259,-256,-252,-241,-283,-277,-301,-302,-300,-293,-290,-285,-430,-425,-442,-410,-827,-818,-836,-604,-628,-387,-2350,-2085,-1952,-1656,-29937,-29940,-11972,-11533,-29943,-5708,-29978,-29978,-29979,-29980,-29980,-29979]} 1. e4 {[%emt 0:00:14]} c5 {[%emt 0:00:24]} 2. Nf3 {[%emt 0:00:19]} d6 {[%emt 0:00:36]} 3. d4 {[%emt 0:00:06]} cxd4 {[%emt 0:00:16]} 4. Nxd4 {[%emt 0:00:06]} Nf6 {[%emt 0:00:36]} 5. Nc3 {[%emt 0:00:06]} a6 {[%emt 0:00:31]} 6. h3 {[%emt 0:00:39]} b5 {[%emt 0:01:57]} 7. g4 {[%emt 0:03:53]} Bb7 {[%emt 0:15:04]} 8. Bg2 {[%emt 0:03:45]} e6 {[%emt 0:01:18]} 9. a3 {[%emt 0:04:42]} h6 {[%emt 0:01:38]} 10. O-O {[%emt 0:01:03]} Qc7 {[%emt 0:03:14]} 11. Be3 {[%emt 0:07:40]} Nbd7 {[%emt 0:01:13]} 12. Qd2 {[%emt 0:13:20]} Nc5 {[%emt 0:12:34]} 13. f3 {[%emt 0:02:40]} Rc8 {[%emt 0:01:13]} 14. Nce2 {[%emt 0:09:36]} (14. Rad1 $11) 14... Ncd7 $17 {[%emt 0:10:27]} 15. Rac1 {[%emt 0:11:32]} d5 {[%emt 0:02:18]} 16. exd5 {[%emt 0:02:35]} Nxd5 {[%emt 0:00:18]} 17. f4 {[%emt 0:05:14]} (17. Nf4 $17) 17... N7b6 $19 {[%emt 0:11:05]} 18. Nc3 {[%emt 0:16:19]} Nxc3 {[%emt 0:04:59]} 19. bxc3 {[%emt 0:04:43]} Nc4 {[%emt 0:01:04]} 20. Qe2 {[%emt 0:01:07]} Bxg2 {[%emt 0:00:17]} 21. Kxg2 {[%emt 0:00:51]} Nxe3+ {[%emt 0:00:19]} ({Don't do} 21... Nxa3 22. f5 e5 (22... Qxc3 23. fxe6 fxe6 24. Qf3 $16) 23. f6 $19) 22. Qxe3 {[%emt 0:00:11]} Qxc3 {[%emt 0:00:53]} 23. Qxc3 {[%emt 0:00:34]} Rxc3 {[%emt 0:00:05]} 24. Rf3 Rc4 {[%emt 0:02:36]} 25. Rd3 {[%emt 0:06:07]} Be7 {[%emt 0:01:06]} 26. Kf3 {[%emt 0:01:46]} O-O {[%emt 0:00:20]} 27. c3 {[%emt 0:02:39]} Rfc8 {[%emt 0:00:25][%cal Og7g5]} 28. Ne2 {[%emt 0:00:26]} Bxa3 {[%emt 0:01:40]} 29. Ra1 {[%emt 0:01:03]} Bb2 {[%emt 0:00:30]} 30. Rxa6 {[%emt 0:00:15]} Bxc3 {[%emt 0:00:06]} 31. Nxc3 {[%emt 0:00:38]} Rxc3 {[%emt 0:00:03]} 32. Rxc3 {[%emt 0:00:32]} Rxc3+ {[%emt 0:00:03][%mdl 4096] Endgame KR-KR. Black is two pawns up.} 33. Kg2 {[%emt 0:00:07]} b4 {[%emt 0:00:10]} 34. Rb6 {[%emt 0:00:21]} b3 {[%emt 0:00:02] And now ...g5 would win.} 35. Rb5 {[%emt 0:00:27]} (35. h4 $142) 35... Kf8 {[%emt 0:01:44]} 36. f5 {[%emt 0:00:49]} exf5 {[%emt 0:00:20]} 37. Rxf5 {[%emt 0:01:09]} (37. gxf5 $142 Ke7 38. Rb7+ Kd6 (38... Kf6 $2 39. Kh2 $19) 39. f6 gxf6 40. Rxf7) 37... Ke7 {[%emt 0:00:15]} (37... Rc2+ $2 38. Kf3 $19) 38. Rb5 {[%emt 0:00:07]} Ke6 {[%emt 0:00:34]} 39. Rb7 {[%emt 0:00:22]} Rc2+ {[%emt 0:00:16]} 40. Kg3 $2 {[%emt 0:00:37]} (40. Kf3 Rc3+ 41. Kg2) 40... b2 {[%emt 0:00:05]} 41. Rb5 {[%emt 0:30:36]} Kd6 {[%emt 0:30:07]} 42. h4 {[%emt 0:00:26]} Kc6 {[%emt 0:00:05]} 43. Rb8 {[%emt 0:00:05]} Kd5 {[%emt 0:00:23] ( -> ...Kd4)} 44. Rb7 {[%emt 0:00:52]} Kd4 {[%emt 0:00:06] ( -> ...Kc3)} 45. g5 {[%emt 0:00:33]} hxg5 {[%emt 0:00:04]} 46. hxg5 {[%emt 0:00:03]} Kc3 {[%emt 0:00:09]} 47. Rc7+ {[%emt 0:00:06]} Kd2 {[%emt 0:00:12]} 0-1

[Event "Prague Open 2025"]
[Site "Prague"]
[Date "2025.01.14"]
[Round "6.20"]
[White "O`cuilleanain, Oisin"]
[Black "Topencik, Bruno"]
[Result "0-1"]
[Annotator "RC"]
[ECO "B11"]
[WhiteElo "2106"]
[BlackElo "1985"]
[PlyCount "146"]
[EventDate "2025.01.07"]
[EventType "swiss"]
[EventCountry "CZE"]
[SourceTitle "playchess.com"]
[Source "ChessBase"]
[SourceQuality "1"]
[TimeControl "40/5400+30:1800+30"]

1. e4 {[%emt 0:00:04]} c6 {[%emt 0:00:43]} 2. Nf3 {[%emt 0:01:02]} d5 {[%emt 0:00:36]} 3. Nc3 {[%emt 0:00:25]} Bg4 {[%emt 0:00:58]} 4. h3 {[%emt 0:00:22]} Bxf3 {[%emt 0:00:40]} 5. Qxf3 {[%emt 0:00:11]} e6 {[%emt 0:01:07]} 6. d4 {[%emt 0:00:36]} dxe4 {[%emt 0:04:10]} 7. Qxe4 {[%emt 0:00:11]} Nf6 {[%emt 0:00:05]} 8. Qd3 {[%emt 0:00:11]} Nbd7 {[%emt 0:02:21]} 9. Be2 {[%emt 0:00:25]} Qc7 {[%emt 0:01:41]} 10. Be3 {[%emt 0:04:20]} Bd6 {[%emt 0:02:25]} 11. Ne4 {[%emt 0:03:07]} Nxe4 {[%emt 0:02:03]} 12. Qxe4 {[%emt 0:00:09]} Nf6 {[%emt 0:01:09]} 13. Qf3 {[%emt 0:01:21]} Qa5+ {[%emt 0:05:00]} 14. Bd2 {[%emt 0:02:07]} Qd5 {[%emt 0:02:18]} 15. c3 {[%emt 0:03:36]} Qxf3 {[%emt 0:03:41]} 16. Bxf3 {[%emt 0:00:12]} a5 {[%emt 0:00:24]} 17. O-O {[%emt 0:01:19]} Ke7 {[%emt 0:02:42]} 18. Rfe1 {[%emt 0:01:10]} Rhd8 {[%emt 0:00:47]} 19. g3 {[%emt 0:01:06]} h6 {[%emt 0:01:43]} 20. a3 {[%emt 0:00:56]} Bc7 {[%emt 0:06:01]} 21. Re2 {[%emt 0:00:54]} Nd5 {[%emt 0:01:45]} 22. Rc1 {[%emt 0:03:45]} Nf6 {[%emt 0:02:35]} 23. Be1 {[%emt 0:04:25]} Bb6 {[%emt 0:01:36]} 24. Rd1 {[%emt 0:01:39]} Rd7 {[%emt 0:01:54]} 25. Red2 {[%emt 0:01:46]} Rad8 {[%emt 0:01:14]} 26. Kf1 {[%emt 0:00:18]} Ke8 {[%emt 0:03:49]} 27. Bg2 {[%emt 0:00:34]} Ke7 {[%emt 0:00:54]} 28. Ke2 {[%emt 0:00:15]} Nh5 {[%emt 0:02:13]} 29. f4 {[%emt 0:01:16]} Nf6 {[%emt 0:03:23]} 30. Bf2 {[%emt 0:00:35]} Ke8 {[%emt 0:02:06]} 31. Rd3 {[%emt 0:02:14]} Ra8 {[%emt 0:01:27]} 32. b3 {[%emt 0:01:39]} Bd8 {[%emt 0:02:41]} 33. Kd2 {[%emt 0:02:20]} Be7 {[%emt 0:01:02]} 34. Ra1 {[%emt 0:00:10]} Kd8 {[%emt 0:01:21]} 35. c4 {[%emt 0:03:24]} Kc7 {[%emt 0:01:03]} 36. Kc3 {[%emt 0:00:09]} b6 {[%emt 0:02:37]} 37. Bf3 {[%emt 0:02:44]} Ne8 {[%emt 0:07:12]} 38. Kb2 {[%emt 0:01:34]} Bf6 {[%emt 0:08:50]} 39. Rad1 {[%emt 0:00:39]} Rad8 {[%emt 0:01:06]} 40. Ka2 {[%emt 0:01:57]} c5 {[%emt 0:08:41]} 41. d5 {[%emt 0:30:41]} exd5 {[%emt 0:33:46]} 42. cxd5 {[%emt 0:00:50]} Nd6 {[%emt 0:00:57]} 43. Rc1 {[%emt 0:05:28]} Nb5 {[%emt 0:02:30]} 44. g4 {[%emt 0:07:20]} Kd6 {[%emt 0:03:35]} 45. Bg3 {[%emt 0:06:34]} Re7 {[%emt 0:02:41]} 46. g5 {[%emt 0:02:28]} hxg5 {[%emt 0:00:00]} 47. fxg5+ {[%emt 0:00:00]} Be5 {[%emt 0:00:00]} 48. Bf2 {[%emt 0:00:00]} Nd4 {[%emt 0:00:00]} 49. Re1 {[%emt 0:00:00]} Nxf3 {[%emt 0:00:00]} 50. Rxf3 {[%emt 0:00:00]} Rde8 {[%emt 0:00:00]} 51. Rd1 {[%emt 0:00:00]} Bd4 {[%emt 0:00:00]} 52. Bxd4 {[%emt 0:00:00]} cxd4 {[%emt 0:00:00]} 53. Rxd4 {[%emt 0:00:00]} Re2+ {[%emt 0:00:00]} 54. Kb1 {[%emt 0:00:00]} Rg2 {[%emt 0:00:00]} 55. Rc3 {[%emt 0:00:00]} Re1+ {[%emt 0:00:00]} 56. Rc1 {[%emt 0:00:00]} Rxc1+ {[%emt 0:00:00]} 57. Kxc1 {[%emt 0:00:00]} Rxg5 {[%emt 0:00:00]} 58. Rf4 {[%emt 0:00:00]} f6 {[%emt 0:00:00]} 59. h4 {[%emt 0:00:00]} Rxd5 {[%emt 0:00:00]} 60. Kc2 {[%emt 0:00:00]} Ke5 {[%emt 0:00:27]} 61. Rg4 {[%emt 0:00:00]} g5 {[%emt 0:01:08]} 62. hxg5 {[%emt 0:00:00]} Kf5 {[%emt 0:00:08]} 63. Rh4 {[%emt 0:00:00]} fxg5 {[%emt 0:00:21]} 64. Rh6 {[%emt 0:00:00]} b5 {[%emt 0:01:30]} 65. Ra6 {[%emt 0:00:00]} b4 {[%emt 0:00:26]} 66. axb4 {[%emt 0:00:00]} axb4 {[%emt 0:00:08]} 67. Ra8 {[%emt 0:00:23]} g4 {[%emt 0:01:11]} 68. Rg8 {[%emt 0:00:52]} Kf4 {[%emt 0:00:29]} 69. Rf8+ {[%emt 0:00:08]} Kg3 {[%emt 0:00:42]} 70. Rg8 {[%emt 0:01:05]} Kh3 {[%emt 0:00:28]} 71. Rh8+ {[%emt 0:00:33]} Kg2 {[%emt 0:00:08]} 72. Rc8 {[%emt 0:00:52]} g3 {[%emt 0:00:58]} 73. Rc4 {[%emt 0:00:17]} Kf3 {[%emt 0:00:32]} 0-1

[Event "Prague Open 2025"]
[Site "Prague"]
[Date "2025.01.14"]
[Round "6.21"]
[White "Moser, Axel"]
[Black "Skettos, Nicolas"]
[Result "1-0"]
[Annotator "TA"]
[ECO "D25"]
[WhiteElo "2160"]
[BlackElo "1954"]
[PlyCount "185"]
[EventDate "2025.01.07"]
[EventType "swiss"]
[EventCountry "CZE"]
[SourceTitle "playchess.com"]
[Source "ChessBase"]
[SourceQuality "1"]
[TimeControl "40/5400+30:1800+30"]

{[%evp 9,185,17,43,16,13,21,17,18,14,27,14,13,39,22,27,13,33,30,43,0,122,95,202,206,204,203,162,164,252,203,224,196,216,213,173,87,202,195,253,237,210,199,492,509,516,507,497,507,480,441,641,633,544,446,754,386,450,462,457,387,371,348,564,0,227,214,281,102,130,41,228,202,272,233,267,148,295,293,322,337,375,352,319,193,199,178,394,387,421,421,373,0,369,287,344,184,184,184,184,178,187,158,268,268,268,191,191,191,191,191,191,191,191,191,29962,29953,29957,29962,29960,29963,29969,29970,29966,29964,29965,29966,29978,29975,29975,29976,29979,29980,29978,29978,29981,29950,29966,29971,29971,29959,29970,0,29963,29959,29962,0,29971,29972,29972,29973,29973,29974,29975,29966,29967,29965,29967,7000,5081,0,411,208,29977,29978,29978,29978,29979,29980,29980,29981,29981,29982,29982,29982,29983,29984,29989,29990]} 1. d4 {[%emt 0:00:06]} d5 {[%emt 0:02:43]} 2. Nf3 {[%emt 0:00:06]} Nf6 {[%emt 0:00:05]} 3. c4 {[%emt 0:00:08]} dxc4 {[%emt 0:00:46]} 4. e3 {[%emt 0:00:20]} Bg4 {[%emt 0:01:59]} 5. Nbd2 {[%emt 0:00:47]} e6 {[%emt 0:01:00]} 6. Nxc4 {[%emt 0:00:14]} Nbd7 {[%emt 0:02:16]} 7. Be2 {[%emt 0:00:37]} Be7 {[%emt 0:01:40]} 8. O-O {[%emt 0:02:08]} O-O {[%emt 0:01:17]} 9. b3 {[%emt 0:00:43]} c5 {[%emt 0:01:45]} 10. Bb2 {[%emt 0:00:14]} cxd4 {[%emt 0:02:16]} 11. Nxd4 {[%emt 0:02:39]} Bxe2 {[%emt 0:00:48]} 12. Qxe2 {[%emt 0:00:07]} Rc8 {[%emt 0:06:58]} 13. Rfd1 {[%emt 0:04:03]} a6 {[%emt 0:06:48]} 14. Qf3 {[%emt 0:02:50]} b5 {[%emt 0:06:42]} (14... Rc7 $11) 15. Nc6 $16 {[%emt 0:04:49] White is more active.} Rxc6 {[%emt 0:04:58]} (15... Qe8 $16) 16. Qxc6 $18 {[%emt 0:00:16]} bxc4 {[%emt 0:00:11]} 17. Bxf6 {[%emt 0:00:12]} Bxf6 {[%emt 0:00:09]} 18. Rxd7 {[%emt 0:00:21]} (18. Qxd7 Qxd7 19. Rxd7 cxb3 $19 (19... Bxa1 $2 20. bxc4 Ra8 21. Kf1 $19)) 18... Qa5 {[%emt 0:16:22]} (18... Bxa1 $142 19. Rxd8 Rxd8) 19. Rad1 {[%emt 0:02:50]} c3 {[%emt 0:01:31]} 20. a4 {[%emt 0:00:10]} h6 {[%emt 0:02:54]} 21. Rb7 {[%emt 0:20:03]} Qh5 {[%emt 0:04:16][%cal Rh5d1]} 22. f3 {[%emt 0:01:44]} (22. Rf1 $18) 22... Qe5 {[%emt 0:02:33]} (22... Qf5 $16) 23. Rd3 {[%emt 0:01:45]} (23. Qxa6 $2 Qxe3+ 24. Kf1 c2 $19) 23... Qa5 {[%emt 0:09:36]} (23... Qf5 $142 24. Qc4 (24. Qxa6 Qc5 $17) 24... Kh7) 24. b4 {[%emt 0:03:36]} Qf5 {[%emt 0:01:53]} 25. Qc4 {[%emt 0:04:21][%cal Ob4b5]} g6 $2 {[%emt 0:03:49]} (25... Kh7) 26. b5 {[%emt 0:00:26]} (26. Qxa6 c2 27. Rc7 Rb8 $18) (26. Ra7 Rb8 $16) 26... axb5 {[%emt 0:00:31]} 27. Rxb5 {[%emt 0:01:06]} e5 {[%emt 0:02:18] ...Rc8 is the strong threat.} 28. Rxc3 {[%emt 0:01:08]} Rd8 {[%emt 0:01:40]} 29. Rc1 {[%emt 0:02:00] Prevents Rd1+} Kg7 {[%emt 0:03:17]} (29... Qd7 $142 30. Rb3 Qa7) 30. Rb7 {[%emt 0:01:15]} Bg5 {[%emt 0:00:16]} 31. Re1 {[%emt 0:01:04]} Rd2 {[%emt 0:02:07]} (31... Qf6 $142 32. a5 Rd6) 32. Re2 {[%emt 0:04:48]} Rd1+ {[%emt 0:02:08]} 33. Kf2 {[%emt 0:00:06]} h5 {[%emt 0:01:53]} 34. Qe4 {[%emt 0:00:50]} Qe6 {[%emt 0:04:19]} 35. Rc2 {[%emt 0:01:22]} Qd6 $2 {[%emt 0:01:21]} (35... Ra1 36. Ra7 Ra3) 36. Re2 $2 {[%emt 0:01:32]} (36. Rcc7 $18) 36... Rh1 $2 {[%emt 0:00:54]} (36... Qe6 $1 $11 {and Black has nothing to worry.} 37. Rb1 Rxb1) 37. Qc4 {[%emt 0:01:58]} Qf6 {[%emt 0:01:23] [#]} 38. Rb4 $2 {[%emt 0:07:19]} (38. Kg3 $1 $18) 38... Rxh2 $16 {[%emt 0:00:23] [#]} 39. Kg1 {[%emt 0:00:06] Inhibits Rh1+.} (39. Qc1 $1 $16) 39... Rh4 $2 {[%emt 0:00:24]} (39... Bf4 $1 $14 40. g3 (40. exf4 Qh4) 40... Qg5 41. Kxh2 (41. Rxh2 Qxg3+ 42. Kf1 Qxf3+ 43. Rf2 Qd1+ 44. Kg2 Qg4+ 45. Kh1 Qh3+ 46. Kg1 Qg4+ 47. Rg2 Qd1+ 48. Kf2 Qd2+ 49. Qe2 Qxb4 $18) 41... Qxg3+ 42. Kh1 Qxf3+ 43. Kg1 Bxe3+ 44. Rxe3 Qxe3+ 45. Kf1 Qh3+ 46. Ke2 Qh2+ 47. Kd1 g5) 40. Qc3 {[%emt 0:00:28]} Rxb4 {[%emt 0:01:21]} 41. Qxb4 $18 {[%emt 0:30:05][%mdl 4096] Endgame KQR-KQB} Qd8 {[%emt 0:02:54]} 42. Qb3 {[%emt 0:00:00] Repels Qd3} (42. Qb5 $18) 42... Qa5 {[%emt 0:00:59]} (42... Bh4 $16) 43. Kf2 {[%emt 0:00:00]} Bh4+ {[%emt 0:01:17]} 44. g3 {[%emt 0:00:00]} Bf6 {[%emt 0:01:50]} 45. Qc4 {[%emt 0:00:00]} Qd8 {[%emt 0:01:30]} 46. Qc2 {[%emt 0:00:00]} h4 {[%emt 0:00:19]} 47. g4 {[%emt 0:00:00]} h3 $2 {[%emt 0:01:45]} (47... Qa8 {might work better.} 48. Rd2 Qa7) 48. Kg3 {[%emt 0:00:00]} Qh8 {[%emt 0:00:31]} 49. Kh2 {[%emt 0:00:00]} Qa8 {[%emt 0:04:06]} 50. Kg3 {[%emt 0:00:00]} (50. Kxh3 Qxf3+ 51. Kh2 Qxg4 $15) 50... Qh8 $1 {[%emt 0:01:59]} 51. a5 {[%emt 0:00:00]} Bh4+ {[%emt 0:04:05]} 52. Kh2 {[%emt 0:00:00]} (52. Kxh3 $142 Be1+ 53. Kg2 Bxa5 54. Qc5) 52... Qa8 {[%emt 0:00:57]} 53. Qe4 {[%emt 0:00:00]} (53. Kxh3 Qxf3+ 54. Kh2 (54. Kxh4 g5+ 55. Kh5 Qf6) 54... Qg3+ 55. Kh1 Qh3+ 56. Kg1 Qg3+ 57. Kh1 Qxg4 $11) 53... Qxa5 {[%emt 0:00:30]} 54. Kxh3 {[%emt 0:00:00]} Qa1 {[%emt 0:05:14][%cal Oh4f2]} 55. f4 {[%emt 0:00:00]} (55. Kxh4 Qh1+ 56. Kg3 Qg1+ 57. Rg2 Qe1+ 58. Rf2 (58. Kh3 Qh1+ 59. Kg3 Qe1+ 60. Rf2 Qg1+ 61. Rg2 Qe1+ $11) 58... Qg1+ 59. Kh3 (59. Rg2 Qe1+ 60. Rf2 Qg1+ 61. Rg2 $11) 59... Qxf2 $11) 55... Qf1+ {[%emt 0:02:31]} (55... Qd1 $16 56. Kxh4 (56. Qxe5+ $2 {perishes.} Bf6 $19) 56... Qxe2 57. Qxe5+ Kg8) 56. Qg2 $1 {[%emt 0:00:00]} ({Less strong is} 56. Kxh4 Qxe2 57. Qxe5+ Kh7 $14) 56... Qxg2+ {[%emt 0:00:11]} 57. Kxg2 {[%emt 0:00:00] and g5 would now be decisive} exf4 {[%emt 0:00:10]} 58. exf4 {[%emt 0:00:00] KR-KB} Bf6 {[%emt 0:00:21]} 59. Kf3 {[%emt 0:00:00]} Bd4 {[%emt 0:00:17]} 60. Ke4 {[%emt 0:00:00]} Bc3 {[%emt 0:00:23]} 61. Kd5 {[%emt 0:00:00] Intending Kd6 and mate.} Kf6 $2 {[%emt 0:00:46]} (61... Kf8 $18 62. Ke4 Bf6) 62. Kd6 {[%emt 0:00:00]} Bb4+ {[%emt 0:00:32]} 63. Kd7 {[%emt 0:00:00]} Ba3 {[%emt 0:00:32]} 64. Rc2 {[%emt 0:00:00]} Bb4 {[%emt 0:01:04]} 65. Rc6+ {[%emt 0:00:00]} Kg7 {[%emt 0:00:03]} 66. Ke8 {[%emt 0:00:00]} f5 {[%emt 0:06:30]} 67. g5 {[%emt 0:00:00]} Bd2 {[%emt 0:00:02]} 68. Rc7+ {[%emt 0:00:00]} Kg8 {[%emt 0:00:09]} 69. Rc4 {[%emt 0:00:03]} Be3 {[%emt 0:00:35]} 70. Ke7 {[%emt 0:00:07]} Kg7 {[%emt 0:00:13]} 71. Ke6 {[%emt 0:00:06]} Bd2 {[%emt 0:00:54]} 72. Rd4 {[%emt 0:00:47]} Bc3 {[%emt 0:00:53]} 73. Rd7+ {[%emt 0:00:05]} Kg8 {[%emt 0:00:04]} 74. Rf7 {[%emt 0:00:57]} Bd4 {[%emt 0:01:24]} 75. Rd7 {[%emt 0:00:14]} Bc3 $1 {[%emt 0:00:24]} 76. Ke7 {[%emt 0:00:38]} Kg7 {[%emt 0:00:29]} 77. Ke6+ {[%emt 0:01:00]} Kg8 {[%emt 0:00:02]} 78. Rd3 {[%emt 0:00:17]} Bb2 {[%emt 0:00:24]} 79. Rb3 {[%emt 0:00:12]} Ba1 {[%emt 0:01:11]} 80. Kd5 {[%emt 0:00:05]} Kf7 {[%emt 0:00:38]} 81. Kc4 {[%emt 0:00:28]} Ke6 {[%emt 0:01:41]} 82. Rb1 {[%emt 0:00:16]} Bh8 {[%emt 0:00:10]} 83. Rh1 {[%emt 0:00:01]} (83. Rb6+ $142 Kf7 84. Rb8 Ba1 85. Rb6 Bh8) 83... Bb2 {[%emt 0:00:21]} 84. Rb1 $2 {[%emt 0:00:12]} (84. Re1+ $18 Kf7 85. Rb1) 84... Ba3 $2 {[%emt 0:01:15][%mdl 8192]} (84... Bh8 $1 $11 85. Rb3 Ba1) 85. Rb6+ {[%emt 0:00:24]} (85. Kd3 $142 Bd6 86. Ke3) 85... Kf7 $2 {[%emt 0:00:23]} (85... Bd6 $18 86. Kd3 Ke7) 86. Kd5 {[%emt 0:01:27]} Bc1 {[%emt 0:00:41]} 87. Rb7+ {[%emt 0:00:04]} Kg8 {[%emt 0:00:42]} 88. Ke6 {[%emt 0:00:15]} Bxf4 {[%emt 0:00:22]} 89. Kf6 {[%emt 0:00:04]} Bd2 {[%emt 0:00:30]} 90. Kxg6 {[%emt 0:00:14][%cal Rb7b8]} Kf8 {[%emt 0:00:10]} 91. Kxf5 {[%emt 0:00:08]} Bc3 {[%emt 0:00:12]} 92. Kg6 {[%emt 0:00:03]} Be5 {[%emt 0:00:20]} 93. Kh7 {[%emt 0:00:07]} 1-0

[Event "Prague Open 2025"]
[Site "Prague"]
[Date "2025.01.15"]
[Round "7.1"]
[White "Harshavardhan G B"]
[Black "Lewtak, Damian"]
[Result "1/2-1/2"]
[Annotator "TA"]
[ECO "E17"]
[WhiteElo "2405"]
[BlackElo "2359"]
[PlyCount "62"]
[EventDate "2025.01.07"]
[EventType "swiss"]
[EventCountry "CZE"]
[SourceTitle "playchess.com"]
[Source "ChessBase"]
[SourceQuality "1"]
[TimeControl "40/5400+30:1800+30"]

{[%evp 11,62,6,10,8,10,0,22,9,21,28,28,22,19,30,36,31,26,19,26,37,43,17,29,14,12,0,0,0,0,0,0,0,0,0,28,0,0,0,0,0,0,-27,-28,-40,-39,-41,-32,-33,-31,-33,-26,-16,-23]} 1. d4 {[%emt 0:00:13]} Nf6 {[%emt 0:00:06]} 2. c4 {[%emt 0:00:20]} e6 {[%emt 0:00:07]} 3. Nf3 {[%emt 0:00:22]} b6 {[%emt 0:00:54]} 4. g3 {[%emt 0:00:10]} Bb7 {[%emt 0:00:06]} 5. Bg2 {[%emt 0:00:10]} Be7 {[%emt 0:00:05]} 6. O-O {[%emt 0:00:14]} O-O {[%emt 0:00:06]} 7. h4 {[%emt 0:00:14]} Qc8 {[%emt 0:03:15]} 8. Nc3 {[%emt 0:00:30]} Ne4 {[%emt 0:00:59]} 9. Bd2 {[%emt 0:00:08]} d6 {[%emt 0:06:55]} 10. Qc2 {[%emt 0:02:46]} Nxd2 {[%emt 0:01:25]} 11. Qxd2 {[%emt 0:00:26]} Nd7 {[%emt 0:00:37]} 12. e4 {[%emt 0:00:44]} c5 {[%emt 0:01:32]} 13. d5 {[%emt 0:01:44]} exd5 {[%emt 0:07:38]} 14. exd5 {[%emt 0:10:32]} Nf6 {[%emt 0:01:19]} 15. Rfe1 {[%emt 0:00:36]} Re8 {[%emt 0:05:36]} 16. Qd3 {[%emt 0:02:18]} h6 {[%emt 0:03:50]} (16... a6 {looks sharper.} 17. Ng5 Qd8 18. Bh3 Bc8) 17. Re2 {[%emt 0:04:44]} Bf8 {[%emt 0:01:05]} 18. Rae1 {[%emt 0:02:18]} Qd7 {[%emt 0:01:00]} 19. Ne4 {[%emt 0:03:02]} Nxe4 {[%emt 0:00:16]} 20. Rxe4 {[%emt 0:00:10]} Rxe4 {[%emt 0:00:55]} 21. Qxe4 {[%emt 0:00:18]} Bc8 {[%emt 0:02:47][%cal Bb7c8,Bc8f5,Bf5d7][%mdl 32]} 22. Nd2 {[%emt 0:27:00]} Qf5 {[%emt 0:07:16]} 23. Qxf5 {[%emt 0:01:02]} Bxf5 {[%emt 0:00:07]} 24. Kh2 {[%emt 0:00:08]} Bd7 {[%emt 0:02:07]} 25. Bh3 {[%emt 0:01:04] Against g6} Re8 {[%emt 0:01:27]} 26. Rd1 {[%emt 0:07:10]} f5 {[%emt 0:00:47]} 27. Bf1 {[%emt 0:04:42]} g5 {[%emt 0:07:49]} 28. hxg5 {[%emt 0:02:34]} hxg5 {[%emt 0:00:18]} 29. Nf3 {[%emt 0:00:46]} g4 {[%emt 0:01:59]} 30. Nh4 {[%emt 0:02:06]} Be7 {[%emt 0:01:51]} 31. Ng6 {[%emt 0:05:20] Prevents Bxh4} Bf6 {[%emt 0:03:26]} 1/2-1/2